[Event "FIDE Grand Swiss 2023"]
[Site "Villa Marina, Douglas, Isle of Man, Isle Of Man"]
[Date "2023.10.26"]
[Round "2.14"]
[White "Jumabayev, Rinat"]
[Black "Esipenko, Andrey"]
[Result "0-1"]
[TimeControl "40/90 + 30 + 30s/move"]
[WhiteFideId "13702661"]
[BlackFideId "24175439"]
[WhiteElo "2585"]
[BlackElo "2683"]

1. d4 {[%clk 01:40:58]} {[%emt 00:00:01]} d5 {[%clk 01:40:40]} {[%emt
00:00:20]} 2. c4 {[%clk 01:41:22]} {[%emt 00:00:06]} c6 {[%clk 01:40:41]}
{[%emt 00:00:30]} 3. e3 {[%clk 01:27:25]} {[%emt 00:14:27]} Nf6 {[%clk
01:40:37]} {[%emt 00:00:33]} 4. Qc2 {[%clk 01:27:37]} {[%emt 00:00:18]} g6
{[%clk 01:23:56]} {[%emt 00:17:11]} 5. Nf3 {[%clk 01:23:32]} {[%emt 00:04:35]}
Bg7 {[%clk 01:24:03]} {[%emt 00:00:23]} 6. Be2 {[%clk 01:23:20]} {[%emt
00:00:42]} c5 {[%clk 01:14:17]} {[%emt 00:10:16]} 7. cxd5 {[%clk 01:13:10]}
{[%emt 00:10:40]} cxd4 {[%clk 01:12:13]} {[%emt 00:02:34]} 8. Nxd4 {[%clk
01:13:34]} {[%emt 00:00:06]} O-O {[%clk 01:08:07]} {[%emt 00:04:36]} 9. O-O
{[%clk 01:13:46]} {[%emt 00:00:17]} Nxd5 {[%clk 00:56:10]} {[%emt 00:12:28]} 10.
Rd1 {[%clk 01:13:50]} {[%emt 00:00:26]} Nd7 {[%clk 00:48:25]} {[%emt 00:08:15]}
11. e4 {[%clk 00:53:03]} {[%emt 00:21:18]} Nb4 {[%clk 00:46:12]} {[%emt
00:02:41]} 12. Qb3 {[%clk 00:48:33]} {[%emt 00:05:01]} Qa5 {[%clk 00:28:03]}
{[%emt 00:18:38]} 13. a3 {[%clk 00:38:07]} {[%emt 00:10:58]} Nc6 {[%clk
00:26:46]} {[%emt 00:01:46]} 14. Nxc6 {[%clk 00:38:07]} {[%emt 00:00:30]} bxc6
{[%clk 00:27:14]} {[%emt 00:00:02]} 15. Qc2 {[%clk 00:38:14]} {[%emt 00:00:23]}
Qc5 {[%clk 00:25:42]} {[%emt 00:01:59]} 16. Nc3 {[%clk 00:21:30]} {[%emt
00:17:17]} Bd4 {[%clk 00:26:01]} {[%emt 00:00:11]} 17. Bf1 {[%clk 00:14:36]}
{[%emt 00:07:24]} Nf6 {[%clk 00:24:03]} {[%emt 00:02:27]} 18. h3 {[%clk
00:13:10]} {[%emt 00:01:57]} Be6 {[%clk 00:21:30]} {[%emt 00:03:03]} 19. Bf4
{[%clk 00:10:13]} {[%emt 00:03:27]} Rfd8 {[%clk 00:21:26]} {[%emt 00:00:34]} 20.
Rac1 {[%clk 00:09:51]} {[%emt 00:00:51]} a5 {[%clk 00:18:52]} {[%emt 00:03:06]}
21. Qe2 {[%clk 00:04:57]} {[%emt 00:05:24]} Qa7 {[%clk 00:18:16]} {[%emt
00:01:06]} 22. e5 {[%clk 00:02:49]} {[%emt 00:02:37]} Nh5 {[%clk 00:14:32]}
{[%emt 00:04:13]} 23. Bh2 {[%clk 00:03:18]} {[%emt 00:00:02]} Bb3 {[%clk
00:14:14]} {[%emt 00:00:48]} 24. Re1 {[%clk 00:03:38]} {[%emt 00:00:10]} Ng7
{[%clk 00:13:06]} {[%emt 00:01:38]} 25. Qf3 {[%clk 00:03:13]} {[%emt 00:00:55]}
Qb6 {[%clk 00:10:38]} {[%emt 00:02:58]} 26. Bg3 {[%clk 00:01:00]} {[%emt
00:02:43]} Nf5 {[%clk 00:08:46]} {[%emt 00:02:22]} 27. Bf4 {[%clk 00:01:28]}
{[%emt 00:00:02]} Rac8 {[%clk 00:08:37]} {[%emt 00:00:39]} 28. g4 {[%clk
00:01:13]} {[%emt 00:00:45]} Ng7 {[%clk 00:08:09]} {[%emt 00:00:57]} 29. Bg3
{[%clk 00:01:13]} {[%emt 00:00:31]} Ne6 {[%clk 00:07:42]} {[%emt 00:00:57]} 30.
h4 {[%clk 00:01:26]} {[%emt 00:00:17]} Bxc3 {[%clk 00:06:22]} {[%emt 00:01:50]}
31. bxc3 {[%clk 00:01:02]} {[%emt 00:00:54]} Qc5 {[%clk 00:06:27]} {[%emt
00:00:24]} 32. Qe3 {[%clk 00:00:32]} {[%emt 00:01:01]} a4 {[%clk 00:04:24]}
{[%emt 00:02:34]} 33. h5 {[%clk 00:00:52]} {[%emt 00:00:09]} Qxa3 {[%clk
00:03:58]} {[%emt 00:00:56]} 34. hxg6 {[%clk 00:01:19]} {[%emt 00:00:03]} fxg6
{[%clk 00:03:51]} {[%emt 00:00:38]} 35. f4 {[%clk 00:01:10]} {[%emt 00:00:38]}
Qc5 {[%clk 00:03:01]} {[%emt 00:01:19]} 36. f5 {[%clk 00:01:28]} {[%emt
00:00:13]} Qxe3+ 37. Rxe3 {[%clk 00:01:57]} Ng5 {[%clk 00:02:11]} {[%emt
00:00:53]} 38. Bf4 {[%clk 00:01:37]} {[%emt 00:00:50]} h6 {[%clk 00:02:31]}
{[%emt 00:00:11]} 39. e6 {[%clk 00:00:59]} {[%emt 00:01:08]} Rf8 {[%clk
00:01:47]} {[%emt 00:01:13]} 40. Bd3 {[%clk 00:00:53]} {[%emt 00:00:36]} Rcd8
{[%clk 00:00:51]} {[%emt 00:01:27]} 41. Ra1 {[%clk 00:36:21]} {[%emt 00:15:03]}
Rd5 {[%clk 00:46:44]} {[%emt 00:04:36]} 42. Kg2 {[%clk 00:34:32]} {[%emt
00:02:18]} gxf5 {[%clk 00:29:53]} {[%emt 00:17:22]} 43. gxf5 {[%clk 00:30:35]}
{[%emt 00:04:28]} Rdxf5 {[%clk 00:26:29]} {[%emt 00:03:52]} 44. Bxf5 {[%clk
00:30:33]} {[%emt 00:00:32]} Rxf5 {[%clk 00:26:53]} {[%emt 00:00:07]} 45. Bd6
{[%clk 00:12:40]} {[%emt 00:18:23]} Bd5+ {[%clk 00:16:34]} {[%emt 00:10:48]} 46.
Kh2 {[%clk 00:10:56]} {[%emt 00:02:15]} exd6 {[%clk 00:11:48]} {[%emt
00:05:16]} 47. e7 {[%clk 00:11:06]} {[%emt 00:00:20]} Bf7 {[%clk 00:12:08]}
{[%emt 00:00:09]} 48. e8=Q+ {[%clk 00:10:55]} {[%emt 00:00:42]} Bxe8 {[%clk
00:12:34]} {[%emt 00:00:04]} 49. Rxe8+ {[%clk 00:11:17]} {[%emt 00:00:08]} Kf7
{[%clk 00:13:00]} {[%emt 00:00:03]} 50. Rc8 {[%clk 00:08:49]} {[%emt 00:02:58]}
Rc5 {[%clk 00:12:58]} {[%emt 00:00:30]} 51. Rxa4 {[%clk 00:08:12]} {[%emt
00:01:09]} Rxc3 {[%clk 00:13:07]} {[%emt 00:00:21]} 52. Kg2 {[%clk 00:05:33]}
{[%emt 00:03:10]} c5 {[%clk 00:10:45]} {[%emt 00:02:52]} 53. Rh4 {[%clk
00:04:01]} {[%emt 00:02:01]} Kg7 {[%clk 00:10:47]} {[%emt 00:00:28]} 54. Rc7+
{[%clk 00:01:15]} {[%emt 00:03:17]} Kg6 {[%clk 00:11:09]} {[%emt 00:00:07]} 55.
Rc8 {[%clk 00:01:36]} {[%emt 00:00:11]} Kf5 {[%clk 00:03:17]} {[%emt 00:08:21]}
56. Rf8+ {[%clk 00:01:44]} {[%emt 00:00:22]} Ke5 {[%clk 00:03:35]} {[%emt
00:00:11]} 57. Re8+ {[%clk 00:01:05]} {[%emt 00:01:10]} Kd5 {[%clk 00:03:56]}
{[%emt 00:00:08]} 58. Rxh6 {[%clk 00:01:08]} {[%emt 00:00:28]} Ne4 {[%clk
00:04:15]} {[%emt 00:00:09]} 59. Rh4 {[%clk 00:00:33]} {[%emt 00:01:07]} Re3
{[%clk 00:04:00]} {[%emt 00:00:44]} 60. Rc8 {[%clk 00:00:33]} {[%emt 00:00:31]}
c4 {[%clk 00:03:21]} {[%emt 00:01:09]} 61. Rf4 {[%clk 00:04:11]} {[%emt
00:11:52]} c3 {[%clk 00:15:58]} {[%emt 00:02:52]} 62. Rf5+ {[%clk 00:04:26]}
{[%emt 00:00:16]} Kd4 {[%clk 00:15:51]} {[%emt 00:00:37]} 63. Ra5 {[%clk
00:04:15]} {[%emt 00:00:40]} Nc5 {[%clk 00:13:36]} {[%emt 00:02:43]} 64. Ra2
{[%clk 00:04:08]} {[%emt 00:00:39]} Kd3 {[%clk 00:11:24]} {[%emt 00:02:42]} 65.
Ra3 {[%clk 00:02:35]} {[%emt 00:02:05]} Kd2 {[%clk 00:09:32]} {[%emt 00:02:20]}
66. Rd8 {[%clk 00:02:27]} {[%emt 00:00:38]} Rd3 {[%clk 00:06:51]} {[%emt
00:03:11]} 67. Rf8 {[%clk 00:01:28]} {[%emt 00:01:30]} Ne4 {[%clk 00:06:33]}
{[%emt 00:00:46]} 68. Ra4 {[%clk 00:00:35]} {[%emt 00:01:24]} d5 {[%clk
00:06:24]} {[%emt 00:00:39]} 69. Rf1 {[%clk 00:00:41]} {[%emt 00:00:24]} c2
{[%clk 00:06:03]} {[%emt 00:00:51]} 70. Raa1 {[%clk 00:00:37]} {[%emt
00:00:34]} d4 {[%clk 00:06:06]} {[%emt 00:00:26]} 0-1

[Event "FIDE Grand Swiss 2023"]
[Site "Villa Marina, Douglas, Isle of Man, Isle Of Man"]
[Date "2023.10.26"]
[Round "2.15"]
[White "Sarana, Alexey"]
[Black "Royal, Shreyas"]
[Result "1-0"]
[TimeControl "40/90 + 30 + 30s/move"]
[WhiteFideId "24133795"]
[BlackFideId "448869"]
[WhiteElo "2682"]
[BlackElo "2407"]

1. d4 {[%clk 01:40:58]} {[%emt 00:00:01]} d5 {[%clk 01:40:46]} {[%emt
00:00:14]} 2. c4 {[%clk 01:41:08]} {[%emt 00:00:21]} dxc4 {[%clk 01:40:57]}
{[%emt 00:00:18]} 3. Nf3 {[%clk 01:41:33]} {[%emt 00:00:04]} Nf6 {[%clk
01:41:09]} {[%emt 00:00:18]} 4. Qa4+ {[%clk 01:41:42]} {[%emt 00:00:22]} Nc6
{[%clk 01:40:59]} {[%emt 00:00:40]} 5. Qxc4 {[%clk 01:41:29]} {[%emt 00:00:44]}
Nd5 {[%clk 01:37:25]} {[%emt 00:04:03]} 6. a3 {[%clk 01:29:39]} {[%emt
00:12:20]} g6 {[%clk 01:22:48]} {[%emt 00:15:07]} 7. Bg5 {[%clk 01:19:00]}
{[%emt 00:11:09]} Bg7 {[%clk 01:20:41]} {[%emt 00:02:36]} 8. e3 {[%clk
01:18:54]} {[%emt 00:00:38]} Nb6 {[%clk 01:12:10]} {[%emt 00:09:01]} 9. Qc3
{[%clk 01:16:07]} {[%emt 00:03:16]} Qd5 {[%clk 01:06:28]} {[%emt 00:06:12]} 10.
Bf4 {[%clk 01:10:54]} {[%emt 00:05:43]} Bg4 {[%clk 01:03:14]} {[%emt 00:03:45]}
11. Nbd2 {[%clk 01:11:03]} {[%emt 00:00:20]} Rc8 {[%clk 00:58:40]} {[%emt
00:05:04]} 12. h3 {[%clk 01:03:39]} {[%emt 00:07:54]} Bf5 {[%clk 00:57:53]}
{[%emt 00:01:18]} 13. Be2 {[%clk 00:53:59]} {[%emt 00:10:10]} O-O {[%clk
00:56:58]} {[%emt 00:01:25]} 14. O-O {[%clk 00:53:29]} {[%emt 00:00:59]} Rfd8
{[%clk 00:47:39]} {[%emt 00:09:49]} 15. Nc4 {[%clk 00:45:04]} {[%emt 00:08:56]}
Nb8 {[%clk 00:40:29]} {[%emt 00:07:39]} 16. b4 {[%clk 00:41:57]} {[%emt
00:03:37]} c5 {[%clk 00:31:23]} {[%emt 00:09:36]} 17. bxc5 {[%clk 00:40:08]}
{[%emt 00:02:20]} Rxc5 {[%clk 00:31:48]} {[%emt 00:00:05]} 18. Nxb6 {[%clk
00:39:27]} {[%emt 00:01:11]} axb6 {[%clk 00:31:48]} {[%emt 00:00:30]} 19. Qb4
{[%clk 00:39:42]} {[%emt 00:00:14]} Rc2 {[%clk 00:29:00]} {[%emt 00:03:19]} 20.
Bd1 {[%clk 00:38:21]} {[%emt 00:01:50]} Rc4 {[%clk 00:23:35]} {[%emt 00:05:54]}
21. Qxb6 {[%clk 00:35:07]} {[%emt 00:03:45]} Bd3 {[%clk 00:15:23]} {[%emt
00:08:42]} 22. Re1 {[%clk 00:32:45]} {[%emt 00:02:53]} Rdc8 {[%clk 00:14:17]}
{[%emt 00:01:36]} 23. Bb3 {[%clk 00:24:45]} {[%emt 00:08:29]} Qc6 {[%clk
00:14:41]} {[%emt 00:00:06]} 24. Qa5 {[%clk 00:16:23]} {[%emt 00:08:52]} b6
{[%clk 00:13:40]} {[%emt 00:01:32]} 25. Qd2 {[%clk 00:12:25]} {[%emt 00:04:28]}
Rc3 {[%clk 00:14:02]} {[%emt 00:00:09]} 26. Qa2 {[%clk 00:12:53]} {[%emt
00:00:01]} Bc4 {[%clk 00:11:05]} {[%emt 00:03:27]} 27. Bxc4 {[%clk 00:13:19]}
{[%emt 00:00:04]} Rxc4 {[%clk 00:10:54]} {[%emt 00:00:41]} 28. Bxb8 {[%clk
00:12:47]} {[%emt 00:01:02]} Rxb8 {[%clk 00:11:23]} {[%emt 00:00:01]} 29. Rab1
{[%clk 00:13:10]} {[%emt 00:00:06]} b5 {[%clk 00:08:38]} {[%emt 00:03:15]} 30.
Rb3 {[%clk 00:12:13]} {[%emt 00:01:28]} Bf6 {[%clk 00:07:02]} {[%emt 00:02:06]}
31. Qd2 {[%clk 00:12:04]} {[%emt 00:00:38]} Rc2 {[%clk 00:06:02]} {[%emt
00:01:30]} 32. Qd3 {[%clk 00:12:28]} {[%emt 00:00:06]} Ra8 {[%clk 00:06:21]}
{[%emt 00:00:12]} 33. Reb1 {[%clk 00:10:46]} {[%emt 00:02:12]} Ra2 {[%clk
00:04:50]} {[%emt 00:02:01]} 34. Qxb5 {[%clk 00:10:28]} {[%emt 00:00:47]} Qxb5
{[%clk 00:05:03]} {[%emt 00:00:18]} 35. Rxb5 {[%clk 00:10:55]} {[%emt
00:00:02]} R8xa3 {[%clk 00:04:51]} {[%emt 00:00:42]} 36. g4 {[%clk 00:11:13]}
{[%emt 00:00:12]} h6 {[%clk 00:04:21]} {[%emt 00:01:00]} 37. h4 {[%clk
00:11:23]} {[%emt 00:00:21]} e6 {[%clk 00:03:01]} {[%emt 00:01:50]} 38. Rb7
{[%clk 00:10:20]} {[%emt 00:01:33]} Ra1 {[%clk 00:03:04]} {[%emt 00:00:27]} 39.
Rxa1 {[%clk 00:10:44]} {[%emt 00:00:06]} Rxa1+ {[%clk 00:03:28]} {[%emt
00:00:06]} 40. Kg2 {[%clk 00:11:10]} {[%emt 00:00:03]} Ra5 {[%clk 00:02:38]}
{[%emt 00:01:20]} 41. e4 {[%clk 00:07:47]} {[%emt 00:03:53]} Kf8 {[%clk
00:47:26]} {[%emt 00:05:43]} 42. Rb8+ {[%clk 00:55:15]} {[%emt 00:03:01]} Kg7
{[%clk 00:45:55]} {[%emt 00:02:01]} 43. Re8 {[%clk 00:55:14]} {[%emt 00:00:30]}
Ra7 {[%clk 00:45:12]} {[%emt 00:01:15]} 44. Rb8 {[%clk 00:53:22]} {[%emt
00:02:21]} Ra4 {[%clk 00:41:45]} {[%emt 00:03:57]} 45. e5 {[%clk 00:53:45]}
{[%emt 00:00:07]} Be7 {[%clk 00:42:10]} {[%emt 00:00:05]} 46. Rb3 {[%clk
00:53:46]} {[%emt 00:00:29]} Ra5 {[%clk 00:33:04]} {[%emt 00:09:36]} 47. Rb7
{[%clk 00:53:14]} {[%emt 00:01:02]} Kf8 {[%clk 00:32:49]} {[%emt 00:00:45]} 48.
Rb8+ {[%clk 00:53:40]} {[%emt 00:00:04]} Kg7 {[%clk 00:33:15]} {[%emt
00:00:05]} 49. Re8 {[%clk 00:54:08]} {[%emt 00:00:02]} Ra7 {[%clk 00:32:16]}
{[%emt 00:01:29]} 50. Kg3 {[%clk 00:54:05]} {[%emt 00:00:32]} Rd7 {[%clk
00:31:14]} {[%emt 00:01:32]} 51. Ra8 {[%clk 00:54:27]} {[%emt 00:00:08]} Rc7
{[%clk 00:30:27]} {[%emt 00:01:18]} 52. Kg2 {[%clk 00:52:59]} {[%emt 00:01:57]}
Rc3 {[%clk 00:30:16]} {[%emt 00:00:42]} 53. Ra4 {[%clk 00:53:19]} {[%emt
00:00:10]} Rd3 {[%clk 00:29:04]} {[%emt 00:01:41]} 54. h5 {[%clk 00:53:02]}
{[%emt 00:00:48]} gxh5 {[%clk 00:25:04]} {[%emt 00:04:30]} 55. gxh5 {[%clk
00:53:26]} {[%emt 00:00:05]} Bg5 {[%clk 00:25:27]} {[%emt 00:00:08]} 56. Ra1
{[%clk 00:50:56]} {[%emt 00:02:59]} Bf4 {[%clk 00:25:22]} {[%emt 00:00:36]} 57.
Re1 {[%clk 00:51:18]} {[%emt 00:00:08]} Bg5 {[%clk 00:22:31]} {[%emt 00:03:20]}
58. Re2 {[%clk 00:51:29]} {[%emt 00:00:19]} Rd1 {[%clk 00:18:52]} {[%emt
00:04:09]} 59. Re4 {[%clk 00:51:29]} {[%emt 00:00:29]} Bd8 {[%clk 00:18:28]}
{[%emt 00:00:55]} 60. Re1 {[%clk 00:49:20]} {[%emt 00:02:38]} Rd3 {[%clk
00:18:23]} {[%emt 00:00:36]} 61. Rb1 {[%clk 00:48:33]} {[%emt 00:01:18]} Bg5
{[%clk 00:18:31]} {[%emt 00:00:22]} 62. Rb2 {[%clk 00:48:56]} {[%emt 00:00:06]}
Bc1 {[%clk 00:17:49]} {[%emt 00:01:13]} 63. Rc2 {[%clk 00:49:08]} {[%emt
00:00:17]} Bf4 {[%clk 00:15:27]} {[%emt 00:02:52]} 64. Rc4 {[%clk 00:47:54]}
{[%emt 00:01:44]} Bg5 {[%clk 00:15:51]} {[%emt 00:00:07]} 65. Ng1 {[%clk
00:43:52]} {[%emt 00:04:31]} Bd8 {[%clk 00:07:46]} {[%emt 00:08:36]} 66. f4
{[%clk 00:43:47]} {[%emt 00:00:35]} Ba5 {[%clk 00:05:39]} {[%emt 00:02:37]} 67.
Nf3 {[%clk 00:44:07]} {[%emt 00:00:09]} Bd2 {[%clk 00:03:46]} {[%emt 00:02:23]}
68. Kg3 {[%clk 00:44:25]} {[%emt 00:00:11]} Be3 {[%clk 00:03:14]} {[%emt
00:01:03]} 69. Kg4 {[%clk 00:44:52]} {[%emt 00:00:03]} Bf2 {[%clk 00:03:09]}
{[%emt 00:00:36]} 70. Ra4 {[%clk 00:45:18]} {[%emt 00:00:03]} Kf8 {[%clk
00:01:56]} {[%emt 00:01:43]} 71. Ra8+ {[%clk 00:45:00]} {[%emt 00:00:48]} Kg7
{[%clk 00:01:11]} {[%emt 00:01:15]} 72. Rd8 {[%clk 00:43:38]} {[%emt 00:01:52]}
Re3 {[%clk 00:11:24]} {[%emt 00:05:17]} 73. d5 {[%clk 00:57:01]} {[%emt
00:02:07]} exd5 {[%clk 00:05:04]} {[%emt 00:06:50]} 74. Rxd5 {[%clk 00:56:15]}
{[%emt 00:01:17]} f5+ {[%clk 00:05:28]} {[%emt 00:00:05]} 75. exf6+ {[%clk
00:56:00]} {[%emt 00:00:45]} Kxf6 {[%clk 00:05:57]} 76. Rd2 {[%clk 00:53:18]}
{[%emt 00:03:12]} Be1 {[%clk 00:06:26]} 77. Rd6+ {[%clk 00:53:42]} {[%emt
00:00:06]} Kg7 {[%clk 00:06:50]} {[%emt 00:00:06]} 78. Rc6 {[%clk 00:51:24]}
{[%emt 00:02:49]} Kh7 {[%clk 00:05:55]} {[%emt 00:01:25]} 79. Rc7+ {[%clk
00:50:25]} {[%emt 00:01:28]} Kg8 {[%clk 00:05:09]} {[%emt 00:01:16]} 80. Rc8+
{[%clk 00:49:58]} {[%emt 00:00:58]} Kh7 {[%clk 00:05:23]} {[%emt 00:00:15]} 81.
Rc6 {[%clk 00:50:06]} {[%emt 00:00:22]} Rc3 {[%clk 00:03:34]} {[%emt 00:02:19]}
82. Rxc3 {[%clk 00:46:33]} {[%emt 00:04:03]} Bxc3 {[%clk 00:04:02]} {[%emt
00:00:02]} 83. Kf5 {[%clk 00:46:58]} {[%emt 00:00:04]} Kg7 {[%clk 00:03:16]}
{[%emt 00:01:17]} 84. Ke6 {[%clk 00:46:27]} {[%emt 00:01:01]} Bf6 {[%clk
00:03:45]} {[%emt 00:00:02]} 85. f5 {[%clk 00:46:50]} {[%emt 00:00:06]} Bd8
{[%clk 00:03:50]} {[%emt 00:00:25]} 86. Ne5 {[%clk 00:47:15]} {[%emt 00:00:05]}
Ba5 {[%clk 00:03:34]} {[%emt 00:00:46]} 87. f6+ {[%clk 00:47:33]} {[%emt
00:00:12]} Kg8 {[%clk 00:04:00]} {[%emt 00:00:04]} 88. Ke7 {[%clk 00:47:53]}
{[%emt 00:00:10]} Bb4+ {[%clk 00:04:26]} {[%emt 00:00:04]} 89. Ke8 {[%clk
00:48:19]} {[%emt 00:00:03]} Kh7 {[%clk 00:04:35]} {[%emt 00:00:22]} 90. Ng6
{[%clk 00:48:44]} {[%emt 00:00:05]} Bc3 {[%clk 00:04:40]} {[%emt 00:00:25]} 91.
f7 {[%clk 00:49:10]} {[%emt 00:00:04]} Bg7 {[%clk 00:05:07]} {[%emt 00:00:04]}
92. Ne7 {[%clk 00:49:36]} {[%emt 00:00:04]} Kh8 {[%clk 00:05:24]} {[%emt
00:00:13]} 93. Nf5 {[%clk 00:50:00]} {[%emt 00:00:05]} 1-0

[Event "FIDE Grand Swiss 2023"]
[Site "Villa Marina, Douglas, Isle of Man, Isle Of Man"]
[Date "2023.10.26"]
[Round "2.16"]
[White "Zhalmakhanov, Ramazan"]
[Black "Amin, Bassem"]
[Result "1-0"]
[TimeControl "40/90 + 30 + 30s/move"]
[WhiteFideId "13706357"]
[BlackFideId "10601457"]
[WhiteElo "2447"]
[BlackElo "2680"]

1. e4 {[%clk 01:40:56]} {[%emt 00:00:03]} e5 {[%clk 01:39:56]} {[%emt
00:01:03]} 2. Nf3 {[%clk 01:41:11]} {[%emt 00:00:16]} Nc6 {[%clk 01:40:19]}
{[%emt 00:00:08]} 3. Bb5 {[%clk 01:41:26]} {[%emt 00:00:13]} a6 {[%clk
01:40:43]} {[%emt 00:00:08]} 4. Ba4 {[%clk 01:41:45]} {[%emt 00:00:10]} Nf6
{[%clk 01:41:07]} {[%emt 00:00:06]} 5. O-O {[%clk 01:41:56]} {[%emt 00:00:18]}
Be7 {[%clk 01:41:19]} {[%emt 00:00:19]} 6. Re1 {[%clk 01:42:11]} {[%emt
00:00:15]} b5 {[%clk 01:41:42]} {[%emt 00:00:08]} 7. Bb3 {[%clk 01:42:34]}
{[%emt 00:00:07]} d6 {[%clk 01:42:09]} {[%emt 00:00:03]} 8. c3 {[%clk
01:42:43]} {[%emt 00:00:21]} O-O {[%clk 01:42:30]} {[%emt 00:00:09]} 9. h3
{[%clk 01:42:58]} {[%emt 00:00:14]} Nb8 {[%clk 01:42:05]} {[%emt 00:00:56]} 10.
d4 {[%clk 01:42:17]} {[%emt 00:01:10]} Nbd7 {[%clk 01:42:32]} {[%emt 00:00:03]}
11. c4 {[%clk 01:42:02]} {[%emt 00:00:45]} c6 {[%clk 01:42:43]} {[%emt
00:00:20]} 12. Qc2 {[%clk 01:41:11]} {[%emt 00:01:21]} Bb7 {[%clk 01:42:28]}
{[%emt 00:00:45]} 13. a3 {[%clk 01:39:05]} {[%emt 00:02:35]} exd4 {[%clk
01:28:43]} {[%emt 00:14:16]} 14. Nxd4 {[%clk 01:38:16]} {[%emt 00:01:18]} Ne5
{[%clk 01:27:53]} {[%emt 00:01:21]} 15. cxb5 {[%clk 01:12:30]} {[%emt
00:26:15]} axb5 {[%clk 01:28:10]} {[%emt 00:00:14]} 16. Bf4 {[%clk 01:12:06]}
{[%emt 00:00:53]} b4 {[%clk 01:22:13]} {[%emt 00:06:29]} 17. a4 {[%clk
00:54:29]} {[%emt 00:18:06]} Nh5 {[%clk 01:05:54]} {[%emt 00:16:48]} 18. Bxe5
{[%clk 00:45:42]} {[%emt 00:09:17]} dxe5 {[%clk 01:06:04]} {[%emt 00:00:21]} 19.
Nf5 {[%clk 00:45:36]} {[%emt 00:00:34]} Nf4 {[%emt 00:22:10]} 20. Nd2 {[%clk
00:29:58]} g6 {[%clk 00:47:08]} {[%emt 00:13:55]} 21. Ne3 {[%clk 00:26:59]}
{[%emt 00:03:29]} Ba6 {[%clk 00:36:36]} {[%emt 00:11:02]} 22. Bc4 {[%clk
00:22:47]} {[%emt 00:04:42]} Bc5 {[%clk 00:27:25]} {[%emt 00:09:42]} 23. Nf3
{[%clk 00:19:37]} {[%emt 00:03:40]} Qe7 {[%clk 00:22:55]} {[%emt 00:05:00]} 24.
Ng4 {[%clk 00:15:49]} {[%emt 00:04:17]} b3 {[%clk 00:18:42]} {[%emt 00:04:44]}
25. Qc1 {[%clk 00:12:16]} {[%emt 00:04:02]} Bd6 {[%clk 00:16:25]} {[%emt
00:02:47]} 26. Bxa6 {[%clk 00:11:08]} {[%emt 00:01:39]} Rxa6 {[%clk 00:16:53]}
{[%emt 00:00:01]} 27. Qc4 {[%clk 00:11:18]} {[%emt 00:00:21]} Rfa8 {[%clk
00:17:10]} {[%emt 00:00:13]} 28. Red1 {[%clk 00:08:56]} {[%emt 00:02:52]} Kg7
{[%clk 00:16:39]} {[%emt 00:01:01]} 29. g3 {[%clk 00:06:05]} {[%emt 00:03:20]}
Nxh3+ {[%clk 00:14:33]} {[%emt 00:02:36]} 30. Kg2 {[%clk 00:06:21]} {[%emt
00:00:15]} Ng5 {[%clk 00:15:00]} {[%emt 00:00:02]} 31. Rxd6 {[%clk 00:05:54]}
{[%emt 00:00:58]} Qxd6 {[%clk 00:04:25]} {[%emt 00:11:05]} 32. Nxg5 {[%clk
00:06:17]} {[%emt 00:00:07]} R6a7 {[%clk 00:04:29]} {[%emt 00:00:26]} 33. Nf3
{[%clk 00:02:51]} {[%emt 00:03:55]} Qe6 {[%clk 00:01:14]} {[%emt 00:03:45]} 34.
Qxe6 {[%clk 00:02:48]} {[%emt 00:00:34]} fxe6 {[%clk 00:01:42]} {[%emt
00:00:02]} 35. Ra3 {[%clk 00:03:15]} {[%emt 00:00:03]} Rxa4 {[%clk 00:00:45]}
{[%emt 00:01:27]} 36. Rxb3 {[%clk 00:03:43]} {[%emt 00:00:02]} R8a7 {[%clk
00:00:48]} {[%emt 00:00:27]} 37. Ng5 {[%clk 00:03:22]} {[%emt 00:00:51]} Re7
{[%clk 00:00:36]} {[%emt 00:00:42]} 38. Nxe5 {[%clk 00:03:44]} {[%emt
00:00:07]} Kf6 {[%clk 00:00:43]} {[%emt 00:00:24]} 39. Nxc6 {[%clk 00:01:04]}
{[%emt 00:03:10]} Rc7 {[%clk 00:00:43]} {[%emt 00:00:30]} 40. f4 {[%clk
00:01:27]} {[%emt 00:00:07]} h6 {[%clk 00:00:31]} {[%emt 00:00:42]} 41. e5+
{[%clk 00:01:20]} {[%emt 00:00:36]} Kf5 {[%clk 00:00:57]} {[%emt 00:00:05]} 42.
Kf3 {[%clk 00:01:39]} {[%emt 00:00:11]} 1-0